bitfinex/quotes_ETHUSD_20250114
["timestamp","ask_amount","ask_price","bid_price","bid_amount"]
[1736895457735,79.23144977,3244.0,3243.7,3.08289]
[1736895458525,0.03323914,3243.9,3243.7,3.08289]
[1736895459439,0.03323914,3243.9,3243.8,3.0828]
[1736895460443,0.03323914,3243.9,3243.6,3.08294]
[1736895460941,0.03323914,3243.9,3243.7,3.08287]
[1736895462039,0.8135,3243.8,3243.2,3.71093366]
[1736895462241,0.8135,3243.8,3242.5,3.88331]
[1736895462242,0.8135,3243.6,3242.5,3.88331]
[1736895462441,0.84697606,3243.5,3242.8,6.29099391]
[1736895462748,0.8135,3243.3,3242.8,3.20732391]
[1736895462929,3.89719,3242.9,3242.4,3.20732391]
[1736895463099,0.8135,3242.6,3242.4,3.20732391]
[1736895463506,3.08404,3242.5,3241.9,3.20732391]
[1736895463705,3.08425,3242.3,3241.9,3.20732391]
[1736895464207,3.11699344,3242.2,3241.9,3.20732391]
[1736895464416,3.11699344,3242.2,3241.1,3.20732391]
[1736895464417,3.08454,3242.0,3241.1,3.20732391]
[1736895464615,0.03232523,3241.9,3241.1,3.20732391]
[1736895465061,0.03232523,3241.9,3240.9,3.20732391]
[1736895465359,0.03232523,3241.9,3240.8,3.7993]
[1736895465568,0.03232523,3241.9,3240.8,0.7993]
[1736895465717,0.42921814,3241.9,3241.0,3.08539]
[1736895467763,3.51384814,3241.9,3241.0,3.08539]
[1736895468340,0.754,3241.8,3241.0,3.08539]
[1736895468738,0.03231514,3241.7,3241.0,3.08539]
[1736895470134,0.03231514,3241.7,3240.9,3.08551]
[1736895471887,0.48707402,3241.7,3240.9,3.08551]
[1736895472668,0.48707402,3241.7,3240.7,3.08571]
[1736895472828,3.0,3241.6,3240.7,3.08571]
[1736895473030,0.03181514,3241.5,3240.7,3.08567]
[1736895474057,0.03181514,3241.5,3240.7,3.70594338]
[1736895474540,0.754,3241.4,3240.7,3.70594338]
[1736895474921,0.03086695,3241.3,3240.7,3.70594338]
[1736895477754,0.754,3241.4,3240.7,3.70594338]
[1736895477942,0.03086572,3241.2,3240.7,3.70594338]
[1736895478139,0.03086695,3241.3,3240.7,3.70594338]
[1736895478468,0.03086572,3241.2,3240.7,3.70594338]
[1736895478763,0.754,3241.4,3240.7,3.70594338]
[1736895478962,0.03086448,3241.1,3240.7,3.70594338]
[1736895479165,0.754,3241.4,3240.7,0.62027338]
[1736895479374,0.754,3241.4,3240.8,3.08564]
[1736895479375,0.03086324,3241.0,3240.8,3.08564]
[1736895479669,0.03086201,3240.9,3240.8,3.08564]
[1736895479965,0.754,3241.4,3240.8,3.08564]
[1736895480329,0.03086695,3241.3,3240.8,3.08564]
[1736895484567,0.03086695,3241.3,3240.8,3.45542294]
[1736895484974,0.03086695,3241.3,3241.0,3.08545]
[1736895485271,0.03086695,3241.3,3240.8,6.35179505]
[1736895485476,0.7997,3241.7,3241.0,3.08546]
[1736895485635,0.03073422,3241.6,3241.2,3.08519]
[1736895485831,0.7997,3241.7,3241.3,0.308519]
[1736895486033,0.7997,3241.7,3241.1,3.0853]
[1736895486260,0.03073381,3241.6,3241.1,3.0853]
[1736895486635,0.7997,3241.7,3241.1,3.0853]
[1736895487038,0.03073381,3241.6,3241.1,3.0853]
[1736895487471,0.03073381,3241.6,3240.9,0.784]
[1736895487679,0.03073381,3241.6,3241.2,3.08526]
[1736895487841,0.03073381,3241.6,3241.2,3.08527]
[1736895490721,0.03073381,3241.6,3241.0,0.71357951]
[1736895490874,0.03073381,3241.6,3241.3,3.08511]
[1736895493578,0.02702358,3241.6,3241.3,3.08511]
[1736895494893,0.02702358,3241.6,3240.9,3.08551]
[1736895494894,0.02702358,3241.6,3241.4,3.08507]
[1736895497085,0.7997,3241.7,3241.4,3.08507]
[1736895497393,0.03061013,3241.6,3241.4,3.08507]
[1736895497601,0.03061013,3241.6,3241.4,3.474177]
[1736895497801,0.7997,3241.7,3241.4,3.474177]
[1736895498223,0.03061013,3241.6,3241.4,3.474177]
[1736895498574,0.7997,3241.7,3241.4,3.474177]
[1736895498974,0.02982919,3241.6,3241.4,3.474177]
[1736895499503,0.7997,3241.7,3241.4,3.08507]
[1736895499799,0.02982919,3241.6,3241.4,3.08507]
[1736895507705,0.8217,3241.9,3241.4,3.08507]
[1736895507911,0.03001216,3241.8,3241.4,3.08507]
[1736895516834,0.03001216,3241.8,3241.5,0.55]
[1736895518248,0.03001216,3241.8,3241.5,1.356]
[1736895518463,0.03001216,3241.8,3241.5,4.44098]
[1736895518610,0.8217,3242.2,3241.5,4.44098]
[1736895518811,0.02908171,3241.7,3241.5,4.44098]
[1736895519034,0.8217,3242.2,3241.5,4.44098]
[1736895519241,0.02908048,3241.6,3241.5,3.63498]
[1736895519553,0.8217,3242.2,3241.5,3.63498]
[1736895519924,0.02908666,3242.1,3241.5,3.63498]
[1736895521447,0.02908666,3242.1,3241.4,0.55]
[1736895521648,0.02908666,3242.1,3241.7,0.55]
[1736895521853,0.02908666,3242.1,3241.8,3.08469]
[1736895522348,0.8217,3242.2,3241.8,3.08469]
[1736895522510,0.02908666,3242.1,3241.8,3.08469]
[1736895522713,0.02908666,3242.1,3241.5,1.92271261]
[1736895522940,0.7761655,3243.2,3242.1,0.55]
[1736895522941,0.8217,3242.5,3242.1,0.55]
[1736895523110,0.0291724,3242.4,3242.1,0.55]
[1736895531464,0.0291724,3242.4,3241.9,0.55]
[1736895531760,0.8246,3242.8,3242.1,3.08439]
[1736895531946,0.86315541,3242.8,3241.9,3.63455]
[1736895532157,0.02940576,3242.7,3241.9,3.63455]
[1736895533283,0.02940576,3242.7,3242.1,1.37271261]
[1736895533439,0.02940576,3242.7,3242.5,3.08397]
[1736895533644,0.8246,3243.1,3242.6,0.55]
[1736895533846,0.8246,3243.4,3242.8,1.3522]
[1736895534146,0.8246,3243.9,3243.0,0.55]
[1736895534450,0.8246,3243.9,3243.4,3.08316]
[1736895535089,78.41794977,3244.0,3243.5,3.63307]
[1736895536627,78.41794977,3244.0,3243.4,0.55]
[1736895536837,78.41794977,3244.0,3243.6,3.08297]
[1736895537360,78.41794977,3244.0,3243.7,3.63289]
[1736895539796,78.41794977,3244.0,3243.4,0.33517355]
[1736895539797,78.41794977,3244.0,3243.4,3.08312]
[1736895539957,78.41794977,3244.0,3243.2,0.55]
[1736895540160,78.41794977,3244.0,3242.5,3.08401]
[1736895540161,3.03853907,3243.9,3242.8,0.8022]
[1736895540354,3.0,3243.5,3242.5,3.084]
[1736895540553,0.86314864,3243.4,3242.5,3.084]
[1736895540798,0.8246,3243.1,3242.1,3.08439]
[1736895541112,0.8246,3242.9,3241.9,6.28146732]
[1736895541256,0.03855346,3243.0,3241.9,3.19688732]
[1736895541257,0.86315564,3242.8,3241.9,3.19688732]
[1736895541460,3.0,3242.5,3241.5,0.8022]
[1736895541653,0.0385587,3242.4,3241.5,0.43426487]
[1736895541960,0.7644,3242.3,3241.4,3.08508]
[1736895542205,0.80296048,3242.3,3241.4,3.08508]
[1736895542566,0.80296048,3242.3,3241.2,3.85596]
[1736895542567,3.88722048,3242.3,3241.2,3.85596]
[1736895542769,3.88722048,3242.3,3240.8,3.08564]
[1736895542770,0.7644,3242.2,3240.8,5.98141695]
[1736895543057,3.0,3242.0,3241.0,3.08544]
[1736895543322,3.68874051,3242.0,3241.1,3.63536]
[1736895543482,3.68874051,3242.0,3241.1,3.08536]
[1736895544272,3.68874051,3242.0,3240.8,3.52492839]
[1736895544273,0.03856512,3241.9,3240.8,3.52492839]
[1736895544464,0.7644,3241.8,3240.8,3.71472144]
[1736895544801,0.7644,3241.4,3240.6,3.08584]
[1736895544970,0.37644,3241.3,3240.2,6.09266427]
[1736895545298,0.37644,3241.3,3240.6,3.08584]
[1736895545820,0.37644,3241.3,3240.7,0.55]
[1736895546383,0.37644,3241.3,3240.6,0.55]
[1736895546961,0.37644,3241.3,3240.4,0.55]
[1736895547165,0.7644,3241.4,3240.7,0.55]
[1736895547702,0.03857128,3241.3,3240.4,3.08599]
[1736895548019,0.7644,3241.1,3240.2,3.08615]
[1736895548216,0.03857606,3241.0,3240.1,3.08632]
[1736895548518,3.0,3241.0,3240.1,3.08632]
[1736895548703,0.49407793,3240.9,3240.1,3.08632]
[1736895549518,0.49407793,3240.9,3240.2,0.55]
[1736895551306,0.53265614,3240.9,3240.2,0.55]
[1736895551774,0.49407793,3240.9,3240.2,0.55]
[1736895551974,0.5326561,3240.9,3240.2,0.55]
[1736895553175,0.36181261,3240.8,3240.0,3.63637]
[1736895554116,0.7644,3240.7,3239.9,3.08649]
[1736895554302,0.80297835,3240.7,3239.8,3.08658]
[1736895554824,3.80297835,3240.7,3239.8,3.08658]
[1736895555111,0.03858215,3240.6,3239.9,0.55]
[1736895555276,0.38029822,3240.5,3239.7,0.55]
[1736895555479,0.03858216,3240.4,3239.7,0.55]
[1736895555823,3.7644,3240.3,3239.1,3.08727]
[1736895556702,3.7644,3240.3,3239.4,3.08699]
[1736895558010,3.7644,3240.3,3239.5,0.55]
[1736895559015,3.80298634,3240.3,3239.5,0.55]
[1736895559216,0.68890363,3240.2,3239.5,0.55]
[1736895559378,0.72748995,3240.2,3239.4,3.08699]
[1736895560071,0.72748995,3240.2,3239.3,0.55]
[1736895560316,0.72748995,3240.2,3239.1,0.55]
[1736895560678,0.72748995,3240.2,3239.4,0.55]
[1736895560877,0.457803,3240.1,3239.4,0.55]
[1736895562734,3.457803,3240.1,3239.3,3.08707]
[1736895562908,0.7888,3239.9,3239.3,3.08707]
[1736895563110,0.7888,3239.9,3239.2,0.55]
[1736895563422,0.7888,3239.9,3239.2,3.63713]
[1736895563622,3.08623,3240.2,3239.4,0.55]
[1736895563623,0.7888,3240.2,3239.4,0.55]
[1736895563816,0.7888,3240.2,3239.6,3.08672]
[1736895564012,0.7888,3240.7,3239.7,0.55]
[1736895564197,0.7888,3240.7,3240.1,3.08631]
[1736895565525,0.7888,3240.7,3240.3,3.08612]
[1736895565729,0.7888,3240.7,3239.9,3.08648]
[1736895565895,0.7888,3240.7,3240.3,3.08607]
[1736895567335,0.7888,3240.7,3240.3,3.08612]
[1736895572102,0.7888,3240.7,3240.3,3.08606]
[1736895577144,0.7888,3240.7,3240.0,0.858648]
[1736895577349,0.7888,3240.7,3240.3,3.08604]
[1736895578234,0.7715,3241.5,3240.8,3.08564]
[1736895578440,0.7715,3241.5,3240.6,0.55]
[1736895578622,2.02773557,3242.8,3241.2,0.55]
[1736895578623,0.7715,3242.1,3241.2,0.55]
[1736895578951,0.7715,3242.1,3241.8,3.08464]
[1736895579132,3.87530857,3242.8,3241.5,3.63495]
[1736895579133,3.7715,3242.7,3241.6,0.55]
[1736895579331,0.685529,3242.6,3241.4,2.89577695]
[1736895579533,0.7715,3242.7,3241.8,0.55]
[1736895579733,0.7715,3242.7,3242.1,3.08439]
[1736895580107,0.7715,3242.7,3242.3,3.08422]
[1736895580335,0.7715,3242.7,3242.4,3.08411]
[1736895580515,3.8548,3243.3,3242.3,3.08418]
[1736895580720,0.7715,3243.1,3242.2,3.08428]
[1736895580924,3.85498,3243.1,3242.2,3.08428]
[1736895584964,0.7715,3242.9,3241.7,3.70227695]
[1736895585261,0.7715,3242.7,3241.5,3.08498]
[1736895585444,3.7715,3242.4,3241.5,3.08498]
[1736895585610,0.72412237,3242.3,3241.5,3.08498]
[1736895585927,3.80836237,3242.3,3241.4,0.55]
[1736895586354,3.80836237,3242.3,3241.4,3.63508]
[1736895586657,0.7915,3242.2,3241.4,3.63508]
[1736895586956,0.03856053,3242.1,3241.4,3.63508]
[1736895587130,0.7915,3242.2,3241.6,0.55]
[1736895587330,1.24306226,3242.2,3241.6,0.55]
[1736895587831,1.24306226,3242.2,3241.5,3.08498]
[1736895591363,4.24306226,3242.2,3241.3,3.08515]
[1736895591566,0.8177,3242.0,3240.7,0.7709]
[1736895591752,3.9024,3241.8,3240.9,3.08552]
[1736895592061,0.43266444,3241.7,3240.9,3.08552]
[1736895592471,0.8177,3241.6,3240.7,3.08572]
[1736895592635,0.8177,3241.4,3240.5,3.70658199]
[1736895592840,3.94145263,3241.3,3240.3,3.08608]
[1736895593036,0.8177,3241.1,3240.3,3.08608]
[1736895593240,0.03857425,3241.0,3240.3,3.08608]
[1736895594273,0.8177,3241.1,3240.4,3.08603]
[1736895594469,3.90307,3241.1,3240.2,3.08619]
[1736895594775,0.8177,3240.9,3240.0,3.08636]
[1736895595270,3.51909894,3241.0,3239.7,5.98244695]
[1736895595271,3.90348,3240.7,3239.8,3.08653]
[1736895595569,3.90348,3240.7,3239.5,0.7709]
[1736895595570,0.8177,3240.5,3239.5,0.7709]
[1736895595773,0.03858128,3240.4,3239.6,3.08675]
[1736895595973,0.42420941,3240.4,3239.6,3.08675]
[1736895596349,0.8177,3240.3,3239.6,3.08675]
[1736895597171,0.8177,3240.3,3239.4,3.08695]
[1736895600080,3.12471552,3240.3,3239.4,3.08695]
[1736895600279,0.8177,3240.2,3238.9,0.7709]
[1736895600579,3.90419,3240.0,3238.9,1.39166211]
[1736895600886,0.43286935,3239.9,3238.9,1.39166211]
[1736895601079,3.43286935,3239.9,3238.9,1.39166211]
[1736895601386,0.8177,3239.8,3238.9,0.62076211]
[1736895601848,0.8177,3239.8,3239.1,3.08727]
[1736895602850,0.8177,3239.8,3239.0,3.08735]
[1736895603050,0.72984879,3239.7,3239.0,3.08735]
[1736895603439,0.8177,3239.8,3238.9,0.62076211]
[1736895603564,0.8177,3239.8,3239.0,2.89577695]
[1736895603768,0.7796,3240.1,3239.6,3.08679]
[1736895605049,0.7796,3240.1,3239.4,3.08692]
[1736895605490,0.7796,3240.1,3239.3,3.08699]
[1736895605872,0.7796,3240.1,3239.1,0.35165391]
[1736895606057,0.7796,3240.1,3239.2,0.32474309]
[1736895606258,0.7796,3240.1,3239.4,3.08699]
[1736895606595,0.7796,3240.1,3239.5,3.08687]
[1736895606890,0.7796,3240.1,3239.2,0.32474309]
[1736895606891,0.7796,3240.1,3239.4,3.08695]
[1736895607584,0.7796,3240.1,3239.2,3.41184309]
[1736895607776,0.7796,3240.1,3239.4,3.08698]
[1736895607983,0.7796,3240.1,3239.5,3.08689]
[1736895609007,3.08569,3240.8,3239.9,3.08651]
[1736895609211,0.7796,3240.7,3240.1,3.08631]
[1736895609412,0.7796,3241.4,3240.1,0.7594]
[1736895609593,0.386464,3241.3,3240.6,3.0858]
[1736895609904,0.7796,3241.4,3240.7,3.08573]
[1736895611579,0.7796,3241.4,3240.5,2.89577695]
[1736895611910,0.7796,3241.4,3240.9,3.08554]
[1736895612413,0.7796,3242.0,3241.2,1.3094]
[1736895612616,0.7796,3242.3,3241.6,2.89577695]
[1736895612769,3.08356,3243.1,3242.0,2.89577695]
[1736895612970,3.86317,3243.0,3242.0,3.08449]
[1736895613270,0.7796,3243.0,3241.8,0.7594]
[1736895613471,3.7796,3243.0,3242.1,3.08441]
[1736895613672,0.7796,3243.0,3242.1,3.08441]
[1736895613867,0.7796,3242.3,3241.1,3.65517695]
[1736895614210,0.7796,3241.8,3240.7,3.19831891]
[1736895614368,3.08496,3241.6,3240.6,3.26283]
[1736895614573,3.47527272,3241.6,3240.6,3.26283]
[1736895614797,3.47527272,3241.6,3240.8,0.62474506]
[1736895614997,3.8646,3241.5,3240.8,0.62474506]
[1736895615223,0.7796,3241.2,3240.1,0.177]
[1736895615545,3.08547,3241.0,3239.9,3.08647]
[1736895615840,0.34712219,3240.9,3239.9,3.84039502]
[1736895616137,0.7796,3240.8,3239.9,3.84039502]
[1736895616294,0.7796,3240.8,3239.9,3.08647]
[1736895616833,3.12433673,3240.7,3239.8,3.51638021]
[1736895617197,3.12433872,3240.7,3239.8,3.51638021]
[1736895617424,3.54558729,3240.7,3239.8,3.51638021]
[1736895617610,3.50700857,3240.7,3239.8,3.51638021]
[1736895617809,0.80417769,3240.6,3239.8,3.51638021]
[1736895618007,3.08605,3240.4,3239.8,3.51638021]
[1736895618211,0.7656,3240.2,3239.5,3.51638021]
[1736895618527,0.03858299,3240.1,3239.5,3.51638021]
[1736895618726,0.7656,3240.2,3239.5,3.51638021]
[1736895618898,0.7656,3240.2,3239.5,6.60323021]
[1736895621031,0.7656,3240.2,3239.5,3.51638021]
[1736895622044,0.7656,3240.2,3239.6,3.08675]
[1736895623701,0.7656,3240.2,3239.5,3.51638021]
[1736895624048,4.22839,3240.2,3239.5,3.51638021]
[1736895624400,4.22839,3240.2,3239.2,3.51638021]
[1736895625709,4.22839,3240.2,3239.3,3.08707]
[1736895625954,1.14216,3240.2,3239.3,3.08707]
[1736895628810,1.14216,3240.2,3239.2,3.51638021]
[1736895629109,1.14216,3240.2,3239.3,3.08707]
[1736895629443,0.422834,3240.1,3239.3,3.08707]
[1736895631506,0.422834,3240.1,3239.2,3.51638021]
[1736895631722,0.422834,3240.1,3239.1,0.61278442]
[1736895631723,0.7656,3240.2,3239.7,3.51638021]
[1736895632406,0.7656,3240.2,3239.4,6.60336021]
[1736895637428,0.7656,3240.2,3239.5,2.90278342]
[1736895638353,3.85187,3240.2,3239.5,2.90278342]
[1736895639471,0.7547,3240.1,3239.5,2.90278342]
[1736895639623,0.384097,3240.0,3239.5,2.90278342]
[1736895641195,0.7547,3239.9,3239.1,3.51556784]
[1736895641389,6.08673,3239.7,3239.1,2.90278342]
[1736895641898,0.7547,3239.6,3238.5,3.8773]
[1736895642058,0.7547,3239.1,3238.5,2.90278342]
[1736895642996,1.13889,3239.1,3238.5,2.90278342]
[1736895643151,1.17748727,3239.1,3238.5,2.90278342]
[1736895643357,3.0874,3239.0,3238.2,3.51954666]
[1736895643583,0.7547,3238.9,3238.2,2.90278342]
[1736895643754,3.84218,3238.9,3238.2,2.90278342]
[1736895644379,0.7547,3238.7,3238.2,2.90278342]
[1736895644781,0.7547,3238.7,3237.9,6.59846922]
[1736895644964,0.7547,3238.7,3237.9,5.99111342]
[1736895644965,1.438918,3238.7,3237.9,5.99111342]
[1736895645478,3.771928,3238.7,3237.9,2.90278342]
[1736895645653,3.84255,3238.5,3237.9,2.90278342]
[1736895645858,0.7547,3238.5,3237.9,2.90278342]
[1736895646059,3.84255,3238.5,3237.9,2.90278342]
[1736895646859,0.8118,3238.4,3237.9,2.90278342]
[1736895647703,3.08804,3238.3,3237.9,2.90278342]
[1736895647858,0.389984,3238.2,3237.6,2.90278342]
[1736895648061,3.89977,3238.4,3237.6,2.90278342]
[1736895648805,0.8118,3238.4,3237.6,2.90278342]
[1736895648985,0.8118,3238.4,3237.6,5.99146342]
[1736895649390,0.8118,3238.4,3237.6,2.90278342]
[1736895649563,3.08804,3238.3,3237.6,2.90278342]
[1736895649762,0.389984,3238.2,3237.6,2.90278342]
[1736895655778,0.389984,3238.2,3237.5,3.69468313]
[1736895656235,0.389984,3238.2,3237.5,6.59746655]
[1736895658351,3.08804,3238.3,3237.5,3.50871655]
[1736895658660,0.7629,3238.2,3237.5,3.50871655]
[1736895658863,3.85105,3238.2,3237.5,3.50871655]
[1736895659160,3.85124,3238.0,3237.5,0.60593313]
[1736895659375,0.3889848,3237.9,3237.5,0.60593313]
[1736895659550,0.3889848,3237.9,3237.2,2.90278342]
[1736895659730,0.7629,3237.8,3237.2,2.90278342]
[1736895660165,0.79779948,3237.8,3237.2,2.90278342]
[1736895660367,0.79779949,3237.8,3237.2,2.90278342]
[1736895660567,1.18670845,3237.8,3237.2,2.90278342]
[1736895660765,0.75918702,3237.8,3237.2,2.90278342]
[1736895661775,0.75918702,3237.8,3236.8,0.8072]
[1736895661776,0.75918702,3237.8,3237.5,2.90278342]
[1736895662135,3.266,3238.4,3237.5,2.90278342]
[1736895662337,0.15324129,3239.3,3237.8,2.90278342]
[1736895662555,3.0872,3239.2,3238.2,3.08811]
[1736895662755,3.08682,3239.6,3238.4,5.99068342]
[1736895662756,0.30872,3239.1,3238.4,5.99068342]
[1736895662965,0.03859851,3239.5,3238.4,5.99068342]
[1736895663170,3.7833,3239.2,3238.4,5.99068342]
[1736895664139,0.7833,3239.2,3238.4,5.99068342]
[1736895664568,3.7833,3239.2,3238.4,5.99068342]
[1736895665642,3.87051,3239.2,3238.4,2.90278342]
[1736895665868,4.257561,3239.2,3238.4,2.90278342]
[1736895667847,3.0,3239.0,3238.4,2.90278342]
[1736895668696,3.0,3238.4,3237.5,3.08872]
[1736895668895,0.03860513,3238.3,3237.3,2.90278342]
[1736895669059,3.08798,3238.4,3237.4,3.08882]
[1736895669263,3.08782,3238.6,3237.6,2.90278342]
[1736895669466,3.0,3238.4,3237.6,5.99147342]
[1736895669666,3.08787,3238.5,3237.6,5.99147342]
[1736895669667,0.03860515,3238.7,3237.6,2.90278342]
[1736895669857,0.7833,3238.2,3237.6,2.90278342]
[1736895674498,0.7833,3238.2,3237.4,3.08889]
[1736895675402,3.87144,3238.2,3237.4,0.6623421]
[1736895678907,0.7833,3238.2,3237.4,0.6623421]
[1736895679108,0.7833,3238.2,3237.4,3.7511921]
[1736895679872,0.7833,3238.2,3237.3,2.90278342]
[1736895679873,3.08823,3238.1,3237.3,2.90278342]
[1736895680788,0.7833,3238.2,3237.3,5.99171342]
[1736895682178,0.7833,3238.2,3237.5,3.0888]
[1736895684892,0.7833,3238.2,3237.6,0.8298]
[1736895693974,0.7833,3238.2,3237.2,3.19831891]
[1736895694126,3.08861,3237.7,3237.2,3.19831891]
[1736895694466,0.385131,3237.7,3237.2,3.19831891]
[1736895694671,0.385131,3237.7,3236.9,3.70602548]
[1736895694842,3.08871,3237.6,3236.9,0.61667548]
[1736895695441,0.385131,3237.7,3236.9,0.61667548]
[1736895695971,0.7627,3237.8,3236.9,3.5194589]
[1736895696194,0.7627,3238.1,3237.2,5.99182342]
[1736895696469,3.8505,3238.6,3237.6,0.8298]
[1736895696655,0.7627,3238.6,3237.8,3.08845]
[1736895696858,1.447729,3238.6,3237.8,3.08845]
[1736895697168,0.7627,3238.9,3238.0,0.8298]
[1736895697331,0.7627,3238.9,3238.1,3.08821]
[1736895697552,3.08757,3238.8,3238.0,0.8298]
[1736895697750,3.88883956,3238.9,3238.0,3.91805]
[1736895698181,3.0,3238.8,3238.0,3.91805]
[1736895699491,3.685024,3238.8,3238.0,3.91805]
[1736895704302,3.0,3239.0,3238.0,0.8298]
[1736895704484,3.0,3239.0,3238.1,2.90278342]
[1736895704670,3.0,3239.0,3238.2,3.08806]
[1736895704875,3.0,3239.0,3238.3,0.8298]
[1736895705313,1.149751,3239.2,3238.3,0.8298]
[1736895705498,3.08743,3239.0,3238.3,0.8298]
[1736895707072,3.05351205,3239.0,3238.3,0.8298]
[1736895707917,0.7758,3239.9,3238.4,2.90278342]
[1736895708116,3.0867,3239.7,3238.8,0.7847]
[1736895708327,0.7758,3239.9,3239.0,2.90278342]
[1736895708480,0.7758,3240.2,3239.3,2.90278342]
[1736895708821,3.78428856,3240.5,3239.7,2.90278342]
[1736895709015,6.87022856,3240.5,3239.8,0.7847]
[1736895709318,0.7758,3240.6,3239.8,0.7847]
[1736895709523,0.7758,3241.0,3239.8,1.46212634]
[1736895709817,0.79227115,3241.4,3240.3,0.7847]
[1736895709818,3.0853,3241.2,3240.3,0.7847]
[1736895710023,3.08537,3241.1,3240.3,0.7847]
[1736895710672,3.0,3241.0,3240.4,2.90278342]
[1736895711073,0.7758,3241.3,3240.4,2.90278342]
[1736895711319,3.0,3241.0,3240.4,2.90278342]
[1736895711576,3.08543,3241.1,3240.4,2.90278342]
[1736895713728,0.7758,3241.3,3240.4,2.90278342]
[1736895714030,3.0,3241.1,3240.4,2.90278342]
[1736895716049,0.7758,3240.9,3240.0,0.7847]
[1736895716202,0.7758,3240.6,3239.6,0.7847]
[1736895716401,3.08627,3240.2,3239.6,0.7847]
[1736895716601,3.0,3240.1,3239.6,0.7847]
[1736895716849,3.08634,3240.1,3239.6,0.7847]
[1736895717006,3.08634,3240.1,3239.2,0.7847]
[1736895717007,0.7758,3240.0,3239.2,0.7847]
[1736895717208,3.08682,3239.6,3239.2,0.7847]
[1736895718107,0.03858956,3239.9,3238.9,0.7847]
[1736895718332,3.08697,3239.5,3238.9,0.7847]
[1736895718530,3.0,3239.4,3238.9,0.7847]
[1736895718730,3.087,3239.4,3238.9,0.7847]
[1736895719137,3.308697,3239.5,3238.9,0.7847]
[1736895721758,0.7772,3240.3,3239.3,2.90278342]
[1736895721923,3.86299,3240.7,3239.7,3.08665]
[1736895722252,0.184,3240.8,3239.9,3.08647]
[1736895722454,0.184,3240.8,3239.9,5.98925342]
[1736895722652,0.184,3240.8,3240.1,3.08631]
[1736895723360,1.22587386,3241.3,3240.2,2.90278342]
[1736895723554,4.31107386,3241.3,3240.2,2.90278342]
[1736895724146,4.31107386,3241.3,3240.3,3.0861]
[1736895724358,3.0,3241.1,3240.3,3.0861]
[1736895724755,3.0,3241.1,3240.2,2.90278342]
[1736895724917,3.0,3241.1,3240.2,3.6426133]
[1736895725311,0.03857246,3241.0,3240.1,0.8103]
[1736895725516,0.7772,3240.9,3239.7,0.8103]
[1736895725719,0.03858169,3240.8,3239.7,0.8103]
[1736895726661,3.08611,3240.4,3239.7,0.8103]
[1736895726864,3.0,3240.3,3239.7,0.8103]
[1736895728516,3.0,3240.1,3239.7,0.8103]
[1736895728750,3.0,3240.1,3239.3,2.90278342]
[1736895728751,0.03858216,3240.1,3239.3,0.8103]
[1736895728945,0.7772,3240.2,3239.3,0.8103]
[1736895728946,3.08652,3239.9,3239.3,0.8103]
[1736895731045,0.7772,3240.2,3239.3,3.89738]
[1736895731347,3.86258,3241.1,3240.1,3.08629]
[1736895731553,3.86258,3241.1,3240.0,0.8103]
[1736895731753,0.44867386,3241.3,3240.4,3.08596]
[1736895732067,0.44867386,3241.3,3240.6,0.8103]
[1736895732068,3.0,3241.3,3240.6,0.8103]
[1736895732864,3.08518,3241.3,3240.6,0.8103]
[1736895733068,0.184,3241.7,3240.6,0.8103]
[1736895733069,3.08533,3241.2,3240.6,0.8103]
[1736895733247,3.0,3241.1,3240.6,0.8103]
[1736895734770,3.08611,3240.4,3239.7,0.8103]
[1736895734951,3.43335225,3240.3,3239.7,0.8103]
[1736895735155,3.08616,3240.3,3239.7,0.8103]
[1736895735355,3.0,3240.5,3239.7,0.8103]
[1736895735674,3.08556,3241.0,3240.0,3.08641]
[1736895735985,3.08556,3241.0,3240.1,3.08624]
[1736895736126,3.0,3240.9,3240.2,0.389654]
[1736895736840,3.0,3240.8,3240.0,0.8103]
[1736895737644,3.0,3240.8,3240.0,3.89669]
[1736895741652,3.0,3240.9,3240.1,3.08629]
[1736895743004,0.9612,3241.3,3240.0,0.8103]
[1736895743005,0.03857508,3241.2,3240.0,0.8103]
[1736895743209,2.90278342,3240.9,3240.0,0.8103]
[1736895743414,3.08635,3240.1,3239.5,0.813]
[1736895743564,3.08607,3240.4,3239.5,0.813]
[1736895743765,3.08613,3240.3,3239.5,0.813]
[1736895743965,3.08624,3240.2,3239.5,0.813]
[1736895744166,3.08643,3240.0,3239.5,0.813]
[1736895744366,3.0,3240.3,3239.5,0.813]
[1736895744709,3.08627,3240.2,3239.5,0.813]
[1736895745070,3.08634,3240.1,3239.5,0.813]
[1736895745609,3.608603,3240.3,3239.5,0.813]
[1736895746116,3.08648,3240.0,3239.5,0.813]
[1736895750522,0.608603,3240.3,3239.5,0.813]
[1736895750811,3.0871,3239.3,3238.6,0.813]
[1736895753418,0.03859064,3239.5,3238.6,0.813]
[1736895753586,3.08758,3238.8,3238.6,0.813]
[1736895753787,3.08758,3238.8,3238.0,0.813]
[1736895753989,3.08758,3238.8,3238.0,1.49341634]
[1736895755012,3.08758,3238.8,3238.3,0.62620977]
[1736895755214,3.08758,3238.8,3238.0,1.49341634]
[1736895756008,3.08769,3238.7,3238.0,1.49341634]
[1736895756213,3.1259166,3239.1,3238.0,0.813]
[1736895756214,0.7582,3239.0,3238.0,0.813]
[1736895756521,3.08795,3238.4,3238.0,0.813]
[1736895756892,3.0,3238.7,3237.5,0.813]
[1736895757079,3.08849,3237.9,3237.5,0.813]
[1736895757428,0.03860918,3237.8,3237.0,0.813]
[1736895757579,3.0887,3237.7,3237.0,0.813]
[1736895757782,0.03861186,3238.0,3237.0,0.813]
[1736895757783,3.08885,3237.5,3237.0,0.813]
[1736895758097,0.03861191,3237.6,3236.5,0.60609809]
[1736895758295,0.03861191,3237.6,3236.3,4.01131891]